[Event "EYCC Girls-U14 2019"]
[Site "Bratislava"]
[Date "2019.08.04"]
[Round "3.4"]
[White "Allahverdiyeva, Ayan"]
[Black "Sevcikova, Lucia"]
[Result "1-0"]
[ECO "B06"]
[WhiteElo "2114"]
[BlackElo "1800"]
[Annotator "NA"]
[PlyCount "155"]
[EventDate "2019.08.02"]
[EventType "swiss"]
[EventCountry "SVK"]
[SourceTitle "playchess.com"]
[Source "ChessBase"]
[SourceQuality "1"]
[TimeControl "40/5400+30:1800+30"]

1. e4 {[%emt 0:00:29]} g6 {[%emt 0:00:00]} 2. d4 {[%emt 0:00:27]} Bg7 {[%emt 0:00:00]} 3. Nc3 {[%emt 0:00:17]} d5 {[%emt 0:00:29]} 4. e5 {[%emt 0:05:22]} f6 {[%emt 0:00:43]} 5. f4 {[%emt 0:03:23]} Nh6 {[%emt 0:00:36]} 6. Nf3 {[%emt 0:01:35]} O-O {[%emt 0:02:30]} 7. Be2 {[%emt 0:01:15]} Bg4 {[%emt 0:02:28]} 8. O-O {[%emt 0:02:17]} c6 {[%emt 0:02:02]} 9. Na4 {[%emt 0:19:38]} Nd7 {[%emt 0:05:26]} 10. c4 {[%emt 0:03:15]} Bxf3 {[%emt 0:03:19]} 11. Bxf3 {[%emt 0:01:25]} e6 {[%emt 0:04:03]} 12. cxd5 {[%emt 0:07:44]} cxd5 {[%emt 0:00:25]} 13. Be3 {[%emt 0:00:51]} Nf5 {[%emt 0:02:58]} 14. Bf2 {[%emt 0:00:30]} b5 {[%emt 0:03:22]} 15. Nc3 {[%emt 0:04:39]} a6 {[%emt 0:02:12]} 16. g4 {[%emt 0:13:26]} Ne7 {[%emt 0:01:48]} 17. Bh4 {[%emt 0:00:14]} Nb6 {[%emt 0:06:10]} 18. Qe1 {[%emt 0:15:16]} Qd7 {[%emt 0:04:28]} 19. Rd1 {[%emt 0:01:02]} Nc6 {[%emt 0:03:21]} 20. f5 {[%emt 0:04:02]} fxe5 {[%emt 0:10:36]} 21. dxe5 {[%emt 0:00:18]} gxf5 {[%emt 0:01:10]} 22. gxf5 {[%emt 0:04:05]} Rxf5 {[%emt 0:00:14]} 23. Ne4 {[%emt 0:07:08]} Nxe5 {[%emt 0:02:57]} 24. Bg2 {[%emt 0:00:48]} Rxf1+ {[%emt 0:01:32]} 25. Qxf1 {[%emt 0:00:14]} Rf8 {[%emt 0:00:20]} 26. Qe2 {[%emt 0:00:22]} h6 {[%emt 0:06:44]} 27. Nf6+ {[%emt 0:01:03]} Bxf6 {[%emt 0:01:56]} 28. Bxf6 {[%emt 0:00:05]} Rxf6 {[%emt 0:00:38]} 29. Qxe5 {[%emt 0:00:06]} Qd8 {[%emt 0:03:03]} 30. Rc1 {[%emt 0:02:09]} Nc4 {[%emt 0:01:40]} 31. Qg3+ {[%emt 0:00:01]} Kf7 {[%emt 0:03:44]} 32. b3 {[%emt 0:00:19]} Qb6+ {[%emt 0:06:15]} 33. Kh1 {[%emt 0:00:01]} Nd6 {[%emt 0:00:35]} 34. Bf3 {[%emt 0:00:04]} Kf8 {[%emt 0:01:14]} 35. Bh5 {[%emt 0:00:26]} b4 {[%emt 0:07:09]} 36. Rg1 {[%emt 0:02:44]} Nf7 {[%emt 0:01:11]} 37. Qg7+ {[%emt 0:00:49]} Ke7 {[%emt 0:00:03]} 38. Bxf7 {[%emt 0:00:04]} Rxf7 {[%emt 0:00:04]} 39. Qxh6 {[%emt 0:00:03]} Qf2 {[%emt 0:01:34]} 40. Qg5+ {[%emt 0:00:00]} Qf6 {[%emt 0:00:00]} 41. Qd2 {[%emt 0:05:53]} Qf3+ {[%emt 0:03:11]} 42. Rg2 {[%emt 0:00:05]} Qe4 {[%emt 0:00:45]} 43. Qc1 {[%emt 0:00:27]} Kd7 {[%emt 0:00:25]} 44. Kg1 {[%emt 0:00:57]} Qd4+ {[%emt 0:03:15]} 45. Kh1 {[%emt 0:00:08]} Qc3 {[%emt 0:01:18]} 46. Qg1 {[%emt 0:02:29]} d4 {[%emt 0:01:06]} 47. Qd1 {[%emt 0:01:43]} Qe3 {[%emt 0:02:40]} 48. Rg3 {[%emt 0:03:10]} Qe4+ {[%emt 0:01:28]} 49. Kg1 {[%emt 0:00:21]} Qf4 {[%emt 0:00:40]} 50. Qe2 {[%emt 0:00:14]} Qc1+ {[%emt 0:04:35]} 51. Kg2 {[%emt 0:00:13]} Qc6+ {[%emt 0:01:00]} 52. Kg1 {[%emt 0:00:14]} e5 {[%emt 0:04:02]} 53. h4 {[%emt 0:02:23]} e4 {[%emt 0:02:39]} 54. Rg8 {[%emt 0:00:32]} Qc5 {[%emt 0:07:10]} 55. Qxe4 {[%emt 0:02:18]} Qc1+ {[%emt 0:02:24]} 56. Kh2 {[%emt 0:00:29]} Qf4+ {[%emt 0:04:25]} 57. Qxf4 {[%emt 0:00:04]} Rxf4 {[%emt 0:00:02]} 58. Kg3 {[%emt 0:01:36]} Re4 {[%emt 0:01:28]} 59. Rg4 {[%emt 0:00:37]} Re2 {[%emt 0:03:07]} 60. Rxd4+ {[%emt 0:00:19]} Ke6 {[%emt 0:00:19]} 61. Rxb4 {[%emt 0:01:16]} Rxa2 {[%emt 0:00:04]} 62. Ra4 {[%emt 0:00:20]} Rb2 {[%emt 0:00:42]} 63. Rxa6+ {[%emt 0:00:10]} Kf7 {[%emt 0:00:04]} 64. Rb6 {[%emt 0:00:08]} Kg7 {[%emt 0:00:04]} 65. h5 {[%emt 0:01:06]} Rb1 {[%emt 0:00:06]} 66. Kf4 {[%emt 0:00:30]} Rf1+ {[%emt 0:00:16]} 67. Ke5 {[%emt 0:00:24]} Rh1 {[%emt 0:00:21]} 68. h6+ {[%emt 0:00:05]} Kh7 {[%emt 0:00:01]} 69. b4 {[%emt 0:00:16]} Rh5+ {[%emt 0:00:03]} 70. Kd4 {[%emt 0:00:13]} Rh4+ {[%emt 0:00:02]} 71. Kc5 {[%emt 0:00:04]} Rh5+ {[%emt 0:00:04]} 72. Kc4 {[%emt 0:00:06]} Rh4+ {[%emt 0:00:03]} 73. Kb5 {[%emt 0:00:04]} Rh5+ {[%emt 0:00:06]} 74. Ka6 {[%emt 0:00:03]} Rh1 {[%emt 0:00:12]} 75. Rc6 {[%emt 0:00:27]} Ra1+ {[%emt 0:00:05]} 76. Kb6 {[%emt 0:00:06]} Rb1 {[%emt 0:00:08]} 77. b5 {[%emt 0:00:03]} Ra1 {[%emt 0:00:04]} 78. Kb7 {[%emt 0:00:05]} 1-0

[Event "EYCC Girls-U14 2019"]
[Site "Bratislava"]
[Date "2019.08.04"]
[Round "3.5"]
[White "Nadzamova, Viktoria"]
[Black "Roebers, Eline"]
[Result "1/2-1/2"]
[ECO "B48"]
[WhiteElo "1854"]
[BlackElo "2069"]
[Annotator "NA"]
[PlyCount "146"]
[EventDate "2019.08.02"]
[EventType "swiss"]
[EventCountry "SVK"]
[SourceTitle "playchess.com"]
[Source "ChessBase"]
[SourceQuality "1"]
[TimeControl "40/5400+30:1800+30"]

1. e4 {[%emt 0:00:00]} c5 {[%emt 0:00:01]} 2. Nf3 {[%emt 0:00:00]} e6 {[%emt 0:00:21]} 3. d4 {[%emt 0:00:00]} cxd4 {[%emt 0:00:26]} 4. Nxd4 {[%emt 0:00:00]} Nc6 {[%emt 0:00:28]} 5. Nc3 {[%emt 0:00:13]} Qc7 {[%emt 0:00:30]} 6. Be3 {[%emt 0:00:28]} a6 {[%emt 0:00:38]} 7. a3 {[%emt 0:00:25]} Nf6 {[%emt 0:03:31]} 8. Be2 {[%emt 0:01:28]} Be7 {[%emt 0:03:48]} 9. f4 {[%emt 0:00:23]} e5 {[%emt 0:17:40]} 10. Nxc6 {[%emt 0:22:11]} bxc6 {[%emt 0:07:40]} 11. fxe5 {[%emt 0:03:57]} Qxe5 {[%emt 0:00:30]} 12. Bd4 {[%emt 0:01:51]} Qe6 {[%emt 0:11:21]} 13. e5 {[%emt 0:07:01]} c5 {[%emt 0:15:05]} 14. exf6 {[%emt 0:06:32]} cxd4 {[%emt 0:00:07]} 15. fxg7 {[%emt 0:00:31]} Rg8 {[%emt 0:00:50]} 16. Qxd4 {[%emt 0:03:16]} Bf6 {[%emt 0:05:45]} 17. Qd3 {[%emt 0:00:47]} Rxg7 {[%emt 0:09:40]} 18. Nd5 {[%emt 0:01:46]} Be5 {[%emt 0:03:48]} 19. O-O-O {[%emt 0:05:03]} Rb8 {[%emt 0:03:58]} 20. b4 {[%emt 0:01:14]} Bb7 {[%emt 0:04:48]} 21. Bf3 {[%emt 0:00:50]} Kf8 {[%emt 0:02:53]} 22. Rhe1 {[%emt 0:02:50]} d6 {[%emt 0:01:21]} 23. Nc7 {[%emt 0:04:06]} Qa2 {[%emt 0:02:37]} 24. Bxb7 {[%emt 0:08:34]} Bf4+ {[%emt 0:01:17]} 25. Re3 {[%emt 0:00:06]} Qa1+ {[%emt 0:02:36]} 26. Kd2 {[%emt 0:00:06]} Qe5 {[%emt 0:00:25]} 27. Bf3 {[%emt 0:07:00]} d5 {[%emt 0:00:33]} 28. Nxd5 {[%emt 0:01:12]} Rd8 {[%emt 0:00:35]} 29. Nxf4 {[%emt 0:04:51]} Rxd3+ {[%emt 0:00:12]} 30. Nxd3 {[%emt 0:00:08]} Qxh2 {[%emt 0:00:51]} 31. Nc5 {[%emt 0:05:38]} Rg6 {[%emt 0:00:31]} 32. Kc3 {[%emt 0:01:37]} Rd6 {[%emt 0:00:35]} 33. Rxd6 {[%emt 0:00:43]} Qxd6 {[%emt 0:00:05]} 34. Rd3 {[%emt 0:00:14]} Qe5+ {[%emt 0:00:41]} 35. Kb3 {[%emt 0:00:15]} Kg7 {[%emt 0:00:24]} 36. Ka4 {[%emt 0:01:14]} Qb2 {[%emt 0:00:42]} 37. Bd1 {[%emt 0:01:07]} Qf6 {[%emt 0:00:14]} 38. Rg3+ {[%emt 0:02:22]} Kh8 {[%emt 0:00:31]} 39. Kb3 {[%emt 0:02:13]} Qf4 {[%emt 0:00:54]} 40. Rd3 {[%emt 0:00:00]} Qf6 {[%emt 0:00:00]} 41. Bf3 {[%emt 0:02:17]} Qb6 {[%emt 0:01:29]} 42. Nd7 {[%emt 0:02:22]} Qe6+ {[%emt 0:00:48]} 43. c4 {[%emt 0:01:48]} Kg7 {[%emt 0:02:37]} 44. a4 {[%emt 0:02:50]} Qe1 {[%emt 0:00:53]} 45. c5 {[%emt 0:03:30]} Qb1+ {[%emt 0:00:18]} 46. Kc3 {[%emt 0:04:19]} Qa1+ {[%emt 0:06:04]} 47. Kc4 {[%emt 0:02:52]} Qa2+ {[%emt 0:01:44]} 48. Kd4 {[%emt 0:09:15]} Qxa4 {[%emt 0:00:59]} 49. c6 {[%emt 0:00:40]} Qxb4+ {[%emt 0:00:20]} 50. Kd5 {[%emt 0:00:29]} Qf4 {[%emt 0:04:30]} 51. Rd4 {[%emt 0:02:55]} Qc7 {[%emt 0:01:14]} 52. Rd1 {[%emt 0:04:07]} a5 {[%emt 0:00:30]} 53. Rb1 {[%emt 0:00:42]} a4 {[%emt 0:00:12]} 54. Rb7 {[%emt 0:01:52]} Qa5+ {[%emt 0:00:05]} 55. Kd6 {[%emt 0:00:42]} Qd2+ {[%emt 0:00:49]} 56. Bd5 {[%emt 0:00:15]} Qh6+ {[%emt 0:02:40]} 57. Kc7 {[%emt 0:01:26]} Qg5 {[%emt 0:01:28]} 58. Kd6 {[%emt 0:01:18]} Qh6+ {[%emt 0:00:05]} 59. Kc5 {[%emt 0:00:22]} Qe3+ {[%emt 0:02:32]} 60. Kb5 {[%emt 0:00:23]} Qd4 {[%emt 0:03:21]} 61. Nb6 {[%emt 0:01:07]} Qb2+ {[%emt 0:00:18]} 62. Kxa4 {[%emt 0:00:19]} Qa1+ {[%emt 0:00:10]} 63. Kb5 {[%emt 0:00:07]} Qb2+ {[%emt 0:00:06]} 64. Kc5 {[%emt 0:00:26]} Qa3+ {[%emt 0:00:07]} 65. Kd4 {[%emt 0:00:31]} Qb2+ {[%emt 0:00:26]} 66. Kc5 {[%emt 0:00:26]} Qa3+ {[%emt 0:00:05]} 67. Kb5 {[%emt 0:00:04]} Qb2+ {[%emt 0:00:27]} 68. Ka6 {[%emt 0:01:35]} Qa3+ {[%emt 0:00:07]} 69. Na4 {[%emt 0:01:03]} Qxa4+ {[%emt 0:00:08]} 70. Kb6 {[%emt 0:00:04]} Qb4+ {[%emt 0:00:08]} 71. Kc7 {[%emt 0:00:27]} Qe7+ {[%emt 0:01:06]} 72. Kb6 {[%emt 0:01:27]} Qb4+ {[%emt 0:00:33]} 73. Kc7 {[%emt 0:00:44]} Qe7+ {[%emt 0:00:14]} 1/2-1/2

[Event "EYCC Girls-U14 2019"]
[Site "Bratislava"]
[Date "2019.08.04"]
[Round "3.6"]
[White "Obrochta, Lena"]
[Black "Lhotska, Anna"]
[Result "0-1"]
[ECO "B45"]
[WhiteElo "1598"]
[BlackElo "1922"]
[Annotator "NA"]
[PlyCount "120"]
[EventDate "2019.08.02"]
[EventType "swiss"]
[EventCountry "SVK"]
[SourceTitle "playchess.com"]
[Source "ChessBase"]
[SourceQuality "1"]
[TimeControl "40/5400+30:1800+30"]

1. e4 {[%emt 0:00:00]} c5 {[%emt 0:00:00]} 2. Nf3 {[%emt 0:00:00]} e6 {[%emt 0:00:22]} 3. d4 {[%emt 0:00:23]} cxd4 {[%emt 0:00:07]} 4. Nxd4 {[%emt 0:00:05]} Nc6 {[%emt 0:01:13]} 5. Nc3 {[%emt 0:01:28]} Nf6 {[%emt 0:01:46]} 6. a3 {[%emt 0:04:52]} d6 {[%emt 0:02:02]} 7. Be2 {[%emt 0:02:01]} Be7 {[%emt 0:01:17]} 8. O-O {[%emt 0:01:48]} O-O {[%emt 0:01:39]} 9. Kh1 {[%emt 0:02:41]} a6 {[%emt 0:06:01]} 10. f4 {[%emt 0:05:30]} Qc7 {[%emt 0:05:03]} 11. Be3 {[%emt 0:04:01]} Bd7 {[%emt 0:04:45]} 12. Nb3 {[%emt 0:06:10]} b5 {[%emt 0:02:47]} 13. Bd3 {[%emt 0:04:08]} b4 {[%emt 0:23:56]} 14. axb4 {[%emt 0:09:26]} Nxb4 {[%emt 0:00:12]} 15. Rf3 {[%emt 0:03:12]} a5 {[%emt 0:15:06]} 16. Nd4 {[%emt 0:10:25]} Nxd3 {[%emt 0:03:52]} 17. Qxd3 {[%emt 0:05:55]} Rfb8 {[%emt 0:02:26]} 18. b3 {[%emt 0:02:28]} Rc8 {[%emt 0:01:27]} 19. Bd2 {[%emt 0:00:38]} Bf8 {[%emt 0:04:04]} 20. Raf1 {[%emt 0:09:52]} a4 {[%emt 0:06:38]} 21. bxa4 {[%emt 0:01:17]} Bxa4 {[%emt 0:00:06]} 22. Rh3 {[%emt 0:01:07]} Qc4 {[%emt 0:00:35]} 23. Rhf3 {[%emt 0:08:52]} Qxd3 {[%emt 0:01:10]} 24. cxd3 {[%emt 0:00:20]} Be8 {[%emt 0:01:03]} 25. f5 {[%emt 0:03:20]} e5 {[%emt 0:00:51]} 26. Nde2 {[%emt 0:00:46]} Rab8 {[%emt 0:01:16]} 27. Bg5 {[%emt 0:01:44]} Nd7 {[%emt 0:02:08]} 28. f6 {[%emt 0:03:28]} g6 {[%emt 0:03:09]} 29. Nd5 {[%emt 0:01:03]} h6 {[%emt 0:00:40]} 30. Bc1 {[%emt 0:01:25]} Rc2 {[%emt 0:01:11]} 31. Nec3 {[%emt 0:03:20]} Rc8 {[%emt 0:00:57]} 32. Bxh6 {[%emt 0:02:05]} R8xc3 {[%emt 0:02:24]} 33. Bxf8 {[%emt 0:00:51]} Nxf8 {[%emt 0:01:09]} 34. Rh3 {[%emt 0:00:42]} Nh7 {[%emt 0:00:44]} 35. Nxc3 {[%emt 0:00:53]} Rxc3 {[%emt 0:00:07]} 36. Rhf3 {[%emt 0:00:32]} Bb5 {[%emt 0:02:41]} 37. Rd1 {[%emt 0:00:16]} Ng5 {[%emt 0:00:35]} 38. Rg3 {[%emt 0:00:20]} Ne6 {[%emt 0:00:24]} 39. Kg1 {[%emt 0:00:57]} Nf4 {[%emt 0:00:42]} 40. Re3 {[%emt 0:00:00]} Rxd3 {[%emt 0:00:00]} 41. Rexd3 {[%emt 0:01:25]} Nxd3 {[%emt 0:06:09]} 42. g3 {[%emt 0:05:11]} Bc4 {[%emt 0:10:18]} 43. Kg2 {[%emt 0:12:33]} d5 {[%emt 0:01:56]} 44. exd5 {[%emt 0:01:50]} Bxd5+ {[%emt 0:00:09]} 45. Kf1 {[%emt 0:01:50]} Bc4 {[%emt 0:05:07]} 46. Rd2 {[%emt 0:03:12]} Nc5+ {[%emt 0:02:05]} 47. Kg2 {[%emt 0:01:04]} Ne4 {[%emt 0:00:23]} 48. Rc2 {[%emt 0:05:08]} Bd5 {[%emt 0:00:39]} 49. Rc8+ {[%emt 0:00:29]} Kh7 {[%emt 0:00:05]} 50. Rd8 {[%emt 0:00:31]} Nxf6+ {[%emt 0:00:10]} 51. Kf1 {[%emt 0:00:27]} Be6 {[%emt 0:00:27]} 52. Ke2 {[%emt 0:01:02]} Kh6 {[%emt 0:01:35]} 53. Rh8+ {[%emt 0:00:25]} Kg7 {[%emt 0:00:13]} 54. Rd8 {[%emt 0:00:09]} Bf5 {[%emt 0:00:30]} 55. Rd6 {[%emt 0:00:57]} Be6 {[%emt 0:01:55]} 56. Rd8 {[%emt 0:00:18]} Ng4 {[%emt 0:00:37]} 57. h3 Nf6 58. g4 {[%emt 0:00:58]} Nd5 {[%emt 0:00:47]} 59. Kf2 {[%emt 0:00:47]} Nf4 {[%emt 0:00:57]} 60. Kg3 {[%emt 0:00:20]} Nd5 {[%emt 0:02:05]} 0-1

[Event "EYCC Girls-U14 2019"]
[Site "Bratislava"]
[Date "2019.08.04"]
[Round "3.7"]
[White "Anacoglu, Cisel"]
[Black "Pipiras, Filipa Fortuna"]
[Result "1-0"]
[ECO "C97"]
[WhiteElo "1869"]
[BlackElo "1980"]
[Annotator "NA"]
[PlyCount "115"]
[EventDate "2019.08.02"]
[EventType "swiss"]
[EventCountry "SVK"]
[SourceTitle "playchess.com"]
[Source "ChessBase"]
[SourceQuality "1"]
[TimeControl "40/5400+30:1800+30"]

1. e4 {[%emt 0:00:00]} e5 {[%emt 0:00:24]} 2. Nf3 {[%emt 0:00:00]} Nc6 {[%emt 0:00:23]} 3. Bb5 {[%emt 0:00:00]} a6 {[%emt 0:00:52]} 4. Ba4 {[%emt 0:00:00]} Nf6 {[%emt 0:00:44]} 5. O-O {[%emt 0:00:06]} Be7 {[%emt 0:00:57]} 6. Re1 {[%emt 0:00:06]} b5 {[%emt 0:00:39]} 7. Bb3 {[%emt 0:00:11]} d6 {[%emt 0:00:52]} 8. c3 {[%emt 0:00:07]} O-O {[%emt 0:00:55]} 9. h3 {[%emt 0:00:05]} Na5 {[%emt 0:01:53]} 10. Bc2 {[%emt 0:00:07]} c5 {[%emt 0:00:20]} 11. d4 {[%emt 0:00:07]} Qc7 {[%emt 0:01:23]} 12. d5 {[%emt 0:00:05]} Nd7 {[%emt 0:03:38]} 13. b3 {[%emt 0:01:04]} Nb6 {[%emt 0:00:37]} 14. Nbd2 {[%emt 0:02:25]} Bd7 {[%emt 0:04:37]} 15. Nf1 {[%emt 0:01:27]} Nb7 {[%emt 0:00:49]} 16. Be3 {[%emt 0:03:13]} c4 {[%emt 0:03:18]} 17. b4 {[%emt 0:00:14]} a5 {[%emt 0:00:29]} 18. a3 {[%emt 0:00:07]} Ra6 {[%emt 0:01:22]} 19. Qe2 {[%emt 0:03:54]} Rfa8 {[%emt 0:01:00]} 20. Bc1 {[%emt 0:00:30]} axb4 {[%emt 0:03:09]} 21. cxb4 {[%emt 0:03:45]} Nd8 {[%emt 0:02:32]} 22. g4 {[%emt 0:00:48]} f6 {[%emt 0:02:34]} 23. Ng3 {[%emt 0:00:10]} Nf7 {[%emt 0:00:26]} 24. Kh2 {[%emt 0:07:40]} Kh8 {[%emt 0:02:42]} 25. Kg2 {[%emt 0:05:47]} Kg8 {[%emt 0:08:55]} 26. Nh2 {[%emt 0:05:05]} Qc8 {[%emt 0:03:46]} 27. Qe3 {[%emt 0:05:49]} Qc7 {[%emt 0:10:23]} 28. f4 {[%emt 0:05:05]} Bf8 {[%emt 0:05:18]} 29. f5 {[%emt 0:00:56]} g6 {[%emt 0:06:19]} 30. Qf3 {[%emt 0:02:52]} g5 {[%emt 0:04:05]} 31. Nh5 {[%emt 0:01:33]} Qd8 {[%emt 0:00:48]} 32. h4 {[%emt 0:07:21]} h6 {[%emt 0:01:49]} 33. Qh3 {[%emt 0:00:21]} Be8 {[%emt 0:03:09]} 34. Nf3 {[%emt 0:01:33]} R8a7 {[%emt 0:01:52]} 35. Rh1 {[%emt 0:00:35]} Nd7 {[%emt 0:03:05]} 36. Nxf6+ {[%emt 0:08:58]} Nxf6 {[%emt 0:02:04]} 37. hxg5 {[%emt 0:00:08]} hxg5 {[%emt 0:00:51]} 38. Bxg5 {[%emt 0:00:43]} Bg7 {[%emt 0:02:54]} 39. Be3 {[%emt 0:04:46]} Rb7 {[%emt 0:02:55]} 40. g5 {[%emt 0:00:00]} Kf8 {[%emt 0:00:00]} 41. gxf6 {[%emt 0:01:04]} Qxf6 {[%emt 0:11:36]} 42. Kf2 {[%emt 0:02:16]} Ra8 {[%emt 0:07:34]} 43. Rhg1 {[%emt 0:01:25]} Bh6 {[%emt 0:01:28]} 44. Rg6 {[%emt 0:01:40]} Bxe3+ {[%emt 0:00:22]} 45. Kxe3 {[%emt 0:00:06]} Qh8 {[%emt 0:02:10]} 46. Qxh8+ {[%emt 0:09:38]} Nxh8 {[%emt 0:00:07]} 47. Rxd6 {[%emt 0:00:09]} Nf7 {[%emt 0:00:44]} 48. Rf6 {[%emt 0:00:58]} Kg7 {[%emt 0:02:45]} 49. Re6 {[%emt 0:03:04]} Bd7 {[%emt 0:03:03]} 50. Rg6+ {[%emt 0:01:23]} Kf8 {[%emt 0:00:26]} 51. f6 {[%emt 0:01:22]} Rba7 {[%emt 0:10:52]} 52. Rag1 {[%emt 0:01:14]} Nh8 {[%emt 0:00:41]} 53. Rg8+ {[%emt 0:00:07]} Kf7 {[%emt 0:00:04]} 54. Nxe5+ {[%emt 0:00:11]} Kxf6 {[%emt 0:00:10]} 55. Nxd7+ {[%emt 0:00:05]} Ke7 {[%emt 0:00:16]} 56. R1g7+ {[%emt 0:00:42]} Kd6 {[%emt 0:00:09]} 57. e5+ {[%emt 0:00:08]} Kxd5 {[%emt 0:00:08]} 58. Be4+ {[%emt 0:00:31]} 1-0

[Event "EYCC Girls-U14 2019"]
[Site "Bratislava"]
[Date "2019.08.04"]
[Round "3.8"]
[White "Kirchei, Viktoriia"]
[Black "Hrebenshchykova, Yelyzaveta"]
[Result "1/2-1/2"]
[ECO "A00"]
[WhiteElo "2006"]
[BlackElo "1955"]
[Annotator "NA"]
[PlyCount "139"]
[EventDate "2019.08.02"]
[EventType "swiss"]
[EventCountry "SVK"]
[SourceTitle "playchess.com"]
[Source "ChessBase"]
[SourceQuality "1"]
[TimeControl "40/5400+30:1800+30"]

1. g3 {[%emt 0:00:00]} Nf6 {[%emt 0:00:00]} 2. Bg2 {[%emt 0:00:00]} c5 {[%emt 0:05:51]} 3. d3 {[%emt 0:01:49]} d5 {[%emt 0:08:29]} 4. Nd2 {[%emt 0:00:08]} Nc6 {[%emt 0:00:15]} 5. e4 {[%emt 0:00:16]} e6 {[%emt 0:03:09]} 6. Ngf3 {[%emt 0:00:08]} g6 {[%emt 0:01:22]} 7. O-O {[%emt 0:00:20]} Bg7 {[%emt 0:01:00]} 8. Re1 {[%emt 0:00:28]} O-O {[%emt 0:00:10]} 9. c3 {[%emt 0:00:59]} Qc7 {[%emt 0:04:13]} 10. e5 {[%emt 0:01:09]} Nd7 {[%emt 0:00:16]} 11. d4 {[%emt 0:00:13]} cxd4 {[%emt 0:04:53]} 12. cxd4 {[%emt 0:00:10]} f6 {[%emt 0:07:11]} 13. exf6 {[%emt 0:01:10]} Nxf6 {[%emt 0:00:07]} 14. Nb3 {[%emt 0:00:11]} Ne4 {[%emt 0:05:19]} 15. Be3 {[%emt 0:01:27]} a5 {[%emt 0:13:46]} 16. Rc1 {[%emt 0:02:24]} Qb6 {[%emt 0:05:09]} 17. Ne5 {[%emt 0:22:26]} a4 {[%emt 0:02:44]} 18. Nxc6 {[%emt 0:12:50]} bxc6 {[%emt 0:01:47]} 19. Nd2 {[%emt 0:00:31]} Nd6 {[%emt 0:10:13]} 20. Qc2 {[%emt 0:09:04]} Nf5 {[%emt 0:06:54]} 21. Qxc6 {[%emt 0:10:41]} Qxc6 {[%emt 0:00:14]} 22. Rxc6 {[%emt 0:00:05]} Nxd4 {[%emt 0:00:37]} 23. Rc7 {[%emt 0:02:06]} Nf5 {[%emt 0:07:55]} 24. Bc5 {[%emt 0:02:21]} Rf7 {[%emt 0:00:18]} 25. Rxf7 {[%emt 0:00:09]} Kxf7 {[%emt 0:00:03]} 26. Nf3 {[%emt 0:01:07]} Bxb2 {[%emt 0:06:40]} 27. Ng5+ {[%emt 0:00:45]} Kg7 {[%emt 0:00:40]} 28. g4 {[%emt 0:08:47]} Nh4 {[%emt 0:00:51]} 29. Bxd5 {[%emt 0:01:55]} Ra5 {[%emt 0:01:42]} 30. Rxe6 {[%emt 0:07:52]} Bxe6 {[%emt 0:01:02]} 31. Nxe6+ {[%emt 0:00:03]} Kf6 {[%emt 0:01:24]} 32. Kf1 {[%emt 0:04:43]} Ke5 {[%emt 0:00:27]} 33. Bc4 {[%emt 0:00:06]} Nf3 {[%emt 0:01:07]} 34. Bb4 {[%emt 0:03:56]} Ra8 {[%emt 0:00:26]} 35. Kg2 {[%emt 0:00:56]} Nd4 {[%emt 0:00:30]} 36. f4+ {[%emt 0:00:51]} Kf6 {[%emt 0:00:39]} 37. g5+ {[%emt 0:00:23]} Kf5 {[%emt 0:00:07]} 38. Kg3 {[%emt 0:02:03]} Ke4 {[%emt 0:00:13]} 39. Nc5+ {[%emt 0:01:53]} Ke3 {[%emt 0:00:06]} 40. Nd3 {[%emt 0:00:00]} Ne2+ {[%emt 0:00:00]} 41. Kg4 {[%emt 0:01:50]} Bc3 {[%emt 0:09:20]} 42. Ba3 {[%emt 0:05:10]} Rd8 {[%emt 0:03:37]} 43. Bc5+ {[%emt 0:05:59]} Bd4 {[%emt 0:02:48]} 44. Be7 {[%emt 0:00:23]} Re8 {[%emt 0:03:03]} 45. Ba3 {[%emt 0:01:52]} Rc8 {[%emt 0:01:49]} 46. Ba6 {[%emt 0:01:05]} Rb8 {[%emt 0:07:53]} 47. Nb4 {[%emt 0:01:10]} Nc3 {[%emt 0:04:46]} 48. h4 {[%emt 0:05:56]} Rb6 {[%emt 0:01:32]} 49. Bc4 {[%emt 0:01:27]} Kd2 {[%emt 0:00:16]} 50. h5 {[%emt 0:04:40]} Nd1 {[%emt 0:01:04]} 51. Nd5 {[%emt 0:01:08]} Rc6 {[%emt 0:00:43]} 52. Bb5 {[%emt 0:00:25]} Rc2 {[%emt 0:00:22]} 53. Bb4+ {[%emt 0:00:36]} Kc1 {[%emt 0:00:41]} 54. hxg6 {[%emt 0:01:14]} hxg6 {[%emt 0:00:03]} 55. a3 {[%emt 0:01:08]} Rg2+ {[%emt 0:00:28]} 56. Kf3 {[%emt 0:00:40]} Rh2 {[%emt 0:01:08]} 57. Bxa4 {[%emt 0:01:55]} Nf2 {[%emt 0:00:19]} 58. Be8 {[%emt 0:00:42]} Rh3+ {[%emt 0:00:41]} 59. Kg2 {[%emt 0:00:41]} Rh4 {[%emt 0:00:28]} 60. Bxg6 {[%emt 0:00:36]} Kd1 {[%emt 0:00:31]} 61. Bf5 {[%emt 0:01:09]} Ke2 {[%emt 0:00:33]} 62. g6 {[%emt 0:01:10]} Nd3 {[%emt 0:00:14]} 63. Bxd3+ {[%emt 0:01:13]} Kxd3 {[%emt 0:00:04]} 64. Kf3 {[%emt 0:00:18]} Rh1 {[%emt 0:00:26]} 65. Bf8 {[%emt 0:01:49]} Rf1+ {[%emt 0:00:14]} 66. Kg2 {[%emt 0:01:25]} Rg1+ {[%emt 0:00:07]} 67. Kh3 {[%emt 0:00:08]} Ke4 {[%emt 0:01:48]} 68. Ne7 {[%emt 0:00:55]} Kf3 {[%emt 0:00:31]} 69. Kh2 {[%emt 0:00:12]} Rg2+ {[%emt 0:00:14]} 70. Kh1 {[%emt 0:00:20]} 1/2-1/2

[Event "EYCC Girls-U14 2019"]
[Site "Bratislava"]
[Date "2019.08.04"]
[Round "3.9"]
[White "Toncheva, Nadya"]
[Black "Tsotsonava, Elene"]
[Result "1-0"]
[ECO "D20"]
[WhiteElo "2087"]
[BlackElo "1878"]
[Annotator "NA"]
[PlyCount "67"]
[EventDate "2019.08.02"]
[EventType "swiss"]
[EventCountry "SVK"]
[SourceTitle "playchess.com"]
[Source "ChessBase"]
[SourceQuality "1"]
[TimeControl "40/5400+30:1800+30"]

1. d4 {[%emt 0:00:00]} d5 {[%emt 0:00:00]} 2. c4 {[%emt 0:00:00]} dxc4 {[%emt 0:00:10]} 3. e3 {[%emt 0:00:00]} c5 {[%emt 0:00:22]} 4. Bxc4 {[%emt 0:01:27]} cxd4 {[%emt 0:00:29]} 5. exd4 {[%emt 0:01:50]} Nf6 {[%emt 0:00:33]} 6. Nf3 {[%emt 0:00:11]} e6 {[%emt 0:00:27]} 7. O-O {[%emt 0:00:14]} Be7 {[%emt 0:00:27]} 8. Nc3 {[%emt 0:00:03]} O-O {[%emt 0:00:29]} 9. Re1 {[%emt 0:00:48]} Nc6 {[%emt 0:00:48]} 10. a3 {[%emt 0:01:15]} b6 {[%emt 0:01:53]} 11. Be3 {[%emt 0:04:01]} Bb7 {[%emt 0:03:02]} 12. Ba2 {[%emt 0:00:26]} Rc8 {[%emt 0:03:24]} 13. Qd3 {[%emt 0:00:59]} Na5 {[%emt 0:10:48]} 14. Ne5 {[%emt 0:06:56]} Nd5 {[%emt 0:07:05]} 15. Rad1 {[%emt 0:02:24]} Nxc3 {[%emt 0:03:01]} 16. bxc3 {[%emt 0:00:05]} Qc7 {[%emt 0:15:56]} 17. Bd2 {[%emt 0:08:58]} Bd5 {[%emt 0:03:56]} 18. Bxd5 {[%emt 0:07:41]} exd5 {[%emt 0:00:22]} 19. Qf3 {[%emt 0:00:10]} Bxa3 {[%emt 0:05:58]} 20. Qxd5 {[%emt 0:03:45]} Nc4 {[%emt 0:01:32]} 21. Nxc4 {[%emt 0:03:09]} Qxc4 {[%emt 0:00:21]} 22. Qxc4 {[%emt 0:00:02]} Rxc4 {[%emt 0:00:03]} 23. Ra1 {[%emt 0:00:03]} Bb2 {[%emt 0:10:31]} 24. Ra2 {[%emt 0:02:45]} Bxc3 {[%emt 0:02:21]} 25. Rc1 {[%emt 0:00:09]} Rd8 {[%emt 0:15:48]} 26. Rxc3 {[%emt 0:01:47]} Rcxd4 {[%emt 0:00:14]} 27. h3 {[%emt 0:00:11]} b5 {[%emt 0:02:35]} 28. Be3 {[%emt 0:00:15]} Rd1+ {[%emt 0:00:52]} 29. Kh2 {[%emt 0:00:04]} b4 {[%emt 0:00:38]} 30. Rb3 {[%emt 0:00:06]} R1d3 {[%emt 0:00:31]} 31. Rxb4 {[%emt 0:00:09]} R3d7 {[%emt 0:00:27]} 32. Rxa7 {[%emt 0:00:11]} Rxa7 {[%emt 0:00:09]} 33. Bxa7 {[%emt 0:00:04]} h5 {[%emt 0:00:08]} 34. Rb8 {[%emt 0:00:05]} 1-0